bitfinex/quotes_SOLUSD_20240603
["timestamp","ask_amount","ask_price","bid_price","bid_amount"]
[1717397628330,2.2337,165.64,165.58,2.2345]
[1717397628636,2.2336,165.65,165.59,2.2343]
[1717397630829,8.5006769,165.66,165.6,2.2342]
[1717397631018,2.2335,165.66,165.6,2.2342]
[1717397631536,2.2337,165.64,165.58,2.2344]
[1717397631733,11.16469145,165.69,165.59,54.48]
[1717397631904,2.2332,165.68,165.63,2.2338]
[1717397632103,8.50053718,165.69,165.63,2.2338]
[1717397634431,8.50053718,165.69,165.64,0.94747122]
[1717397635308,6.26743718,165.69,165.64,0.94747122]
[1717397635762,6.26743718,165.69,165.64,3.18107122]
[1717397635928,6.26743718,165.69,165.65,0.94741402]
[1717397636638,6.26743718,165.69,165.65,2.15553812]
[1717397638108,6.26743718,165.69,165.59,36.27]
[1717397639239,2.2333,165.68,165.62,2.234]
[1717397640555,2.2333,165.67,165.62,2.234]
[1717397643746,0.17,165.66,165.54,40.74]
[1717397643938,4.92275864,165.73,165.56,6.7041]
[1717397643939,4.93428919,165.72,165.56,6.7041]
[1717397644246,2.2336,165.65,165.59,2.2343]
[1717397644452,2.2337,165.64,165.58,2.2345]
[1717397644827,2.2337,165.64,165.59,2.2344]
[1717397645052,8.50577056,165.66,165.59,2.2344]
[1717397645354,6.27217056,165.66,165.61,2.2341]
[1717397646356,8.50567056,165.66,165.6,2.2342]
[1717397646870,8.50567056,165.66,165.61,8.6119]
[1717397647230,8.50567056,165.66,165.61,6.3778]
[1717397648645,8.50567056,165.66,165.61,8.6119]
[1717397648843,6.27217056,165.66,165.61,8.6119]
[1717397649762,6.27217056,165.66,165.62,2.2339]
[1717397649943,2.2332,165.68,165.62,2.2339]
[1717397651233,2.2333,165.67,165.62,2.2339]
[1717397651959,2.2333,165.67,165.61,8.6119]
[1717397652833,4.4662,165.69,165.57,6.6401]
[1717397653034,6.27192714,165.7,165.53,22.5912]
[1717397653035,2.2345,165.59,165.53,22.5912]
[1717397653340,2.2345,165.59,165.53,24.8264]
[1717397653750,2.2343,165.6,165.54,2.2351]
[1717397654756,2.2344,165.59,165.54,2.2351]
[1717397655671,2.2343,165.6,165.54,2.2351]
[1717397656239,2.2345,165.59,165.53,2.2352]
[1717397656550,4.4681,165.62,165.51,2.2354]
[1717397656746,2.2346,165.58,165.51,2.2354]
[1717397657545,2.2346,165.58,165.52,2.2353]
[1717397658745,8.9353,165.64,165.49,87.6128]
[1717397659056,0.34,165.63,165.5,0.34]
[1717397659256,2.2344,165.6,165.53,2.2352]
[1717397659455,2.2344,165.59,165.53,2.2352]
[1717397660555,8.49405188,165.59,165.53,2.2352]
[1717397662272,8.49405188,165.59,165.54,2.2351]
[1717397662453,2.2344,165.59,165.54,2.2351]
[1717397665161,2.2344,165.59,165.53,2.2352]
[1717397665864,2.2344,165.59,165.53,3.44252408]
[1717397666745,2.2343,165.6,165.54,2.235]
[1717397666951,2.2343,165.6,165.55,1.20865278]
[1717397667575,2.2343,165.6,165.54,2.235]
[1717397667872,6.2450895,165.61,165.55,2.2349]
[1717397668072,8.4791895,165.61,165.55,2.2349]
[1717397668970,2.2343,165.6,165.55,2.2349]
[1717397669269,8.4791895,165.61,165.55,2.2349]
[1717397670275,2.2343,165.6,165.55,2.2349]
[1717397670458,2.2343,165.6,165.54,2.235]
[1717397671962,6.2450895,165.61,165.53,36.27]
[1717397672276,6.2450895,165.61,165.55,2.2348]
[1717397672277,8.4792895,165.61,165.55,2.2348]
[1717397676078,8.9353,165.67,165.56,2.2347]
[1717397676260,2.234,165.62,165.56,2.2347]
[1717397676578,2.234,165.62,165.57,2.2346]
[1717397677279,2.2341,165.61,165.56,2.2348]
[1717397679278,6.23705396,165.63,165.55,36.27]
[1717397679474,6.23705396,165.63,165.58,2.2345]
[1717397679475,2.2339,165.63,165.58,2.2345]
[1717397679677,2.2336,165.65,165.59,2.2343]
[1717397680190,2.2337,165.64,165.59,2.2343]
[1717397680498,2.2337,165.64,165.58,2.2345]
[1717397680667,2.2337,165.64,165.59,2.2344]
[1717397682890,2.2336,165.65,165.6,2.2342]
[1717397683082,2.2334,165.66,165.6,2.2342]
[1717397683277,2.2334,165.66,165.6,4.2245832]
[1717397683599,2.2334,165.66,165.6,2.2342]
[1717397684985,2.2334,165.66,165.59,2.2344]
[1717397685202,4.4663,165.69,165.59,2.2344]
[1717397685578,2.2337,165.65,165.59,2.2344]
[1717397686388,2.2337,165.65,165.6,2.2342]
[1717397686976,2.2337,165.64,165.58,2.2344]
[1717397687191,2.2339,165.63,165.56,36.27]
[1717397687400,4.4665,165.68,165.58,2.2345]
[1717397687568,2.2337,165.64,165.58,2.2345]
[1717397687775,2.2336,165.65,165.59,2.2344]
[1717397688481,2.2336,165.65,165.6,2.2342]
[1717397688690,2.2336,165.65,165.59,2.2344]
[1717397692697,2.2337,165.64,165.59,2.2344]
[1717397692880,2.2335,165.66,165.59,2.2344]
[1717397693190,20.0956,165.71,165.59,2.2344]
[1717397693191,2.2336,165.65,165.59,2.2344]
[1717397693796,20.0956,165.71,165.6,2.2342]
[1717397693797,2.2334,165.66,165.6,2.2342]
[1717397694801,2.2336,165.65,165.6,2.2342]
[1717397696598,2.2336,165.65,165.6,8.6979]
[1717397698007,4.466,165.7,165.55,2.2349]
[1717397698008,2.2342,165.61,165.55,2.2349]
[1717397698906,2.2342,165.61,165.56,2.2348]
[1717397700209,60.0,165.78,165.54,2.235]
[1717397700379,2.2344,165.6,165.54,2.235]
[1717397701190,2.2344,165.6,165.55,2.2349]
[1717397701612,2.2341,165.61,165.55,2.2349]
[1717397702120,2.2343,165.6,165.55,2.2349]
[1717397702626,2.2341,165.62,165.55,2.2349]
[1717397702992,4.4673,165.65,165.51,15.1135]
[1717397702993,4.4675,165.64,165.51,15.1135]
[1717397703199,2.2345,165.59,165.53,2.2352]
[1717397708917,2.2343,165.6,165.54,2.2351]
[1717397709788,2.2344,165.59,165.53,2.2352]
[1717397711004,2.2344,165.59,165.54,2.2351]
[1717397711390,2.2344,165.59,165.53,2.2352]
[1717397712400,2.2343,165.6,165.54,2.235]
[1717397714724,2.2344,165.59,165.53,2.2352]
[1717397716419,2.2343,165.6,165.54,2.2351]
[1717397716618,2.2344,165.59,165.54,2.2351]
[1717397716927,2.2343,165.6,165.54,2.2351]
[1717397719033,2.2344,165.59,165.53,2.2352]
[1717397720028,7.25564184,165.58,165.53,2.2352]
[1717397720232,7.25564184,165.58,165.54,2.235]
[1717397721335,7.25564184,165.57,165.54,2.235]
[1717397721535,7.25564184,165.59,165.54,2.235]
[1717397721844,7.25563378,165.58,165.54,2.235]
[1717397722047,7.25563378,165.59,165.54,2.235]
[1717397722213,7.25563378,165.58,165.54,2.235]
[1717397722410,7.25563378,165.59,165.54,2.235]
[1717397722630,7.25563378,165.58,165.54,2.235]
[1717397722802,7.25563378,165.59,165.54,2.235]
[1717397723329,7.25563378,165.59,165.55,2.2349]
[1717397724415,7.25563378,165.59,165.54,2.235]
[1717397725860,7.25563378,165.59,165.5,54.3626]
[1717397726006,7.25563378,165.59,165.54,2.235]
[1717397727641,7.25563378,165.59,165.55,6.5514]
[1717397727839,2.2339,165.63,165.56,2.2347]
[1717397728011,7.25435011,165.62,165.56,2.2347]
[1717397728627,9.48835011,165.62,165.57,2.2346]
[1717397728831,7.25435011,165.61,165.57,2.2346]
[1717397729022,7.25435011,165.61,165.58,0.60378107]
[1717397729228,7.25435011,165.61,165.56,2.2348]
[1717397729635,9.48855011,165.61,165.55,8.7863]
[1717397729841,7.25435011,165.6,165.55,8.7863]
[1717397731448,7.25435011,165.6,165.51,6.4964]
[1717397731626,2.2344,165.59,165.53,2.2352]
[1717397731948,9.48941132,165.58,165.52,2.2353]
[1717397732121,9.48961132,165.57,165.51,6.4964]
[1717397732322,7.25619968,165.56,165.51,8.7318]
[1717397732628,7.25619968,165.55,165.51,8.7318]
[1717397732843,2.2348,165.57,165.52,2.2353]
[1717397733024,7.25617091,165.56,165.52,2.2353]
[1717397733366,7.25617091,165.56,165.47,36.27]
[1717397733532,2.2351,165.54,165.48,2.2359]
[1717397734048,7.25709221,165.53,165.48,2.2359]
[1717397734626,7.25709221,165.53,165.47,6.4969]
[1717397734627,7.25709221,165.53,165.49,2.2357]
[1717397734943,2.235,165.55,165.49,2.2357]
[1717397735146,7.25719417,165.54,165.49,2.2357]
[1717397736957,9.49229417,165.54,165.48,2.2359]
[1717397737125,7.25719417,165.53,165.48,2.2359]
[1717397739347,9.49239417,165.53,165.47,2.236]
[1717397739553,7.25719417,165.52,165.47,2.236]
[1717397741347,9.49249417,165.52,165.47,2.236]
[1717397741643,7.25719417,165.51,165.47,2.236]
[1717397741850,2.2353,165.52,165.47,2.236]
[1717397742251,2.2352,165.53,165.47,2.236]
[1717397742433,7.25801425,165.52,165.47,2.236]
[1717397745329,9.49341425,165.52,165.45,2.2362]
[1717397745631,7.25801425,165.51,165.46,2.236]
[1717397748235,2.2356,165.5,165.45,2.2363]
[1717397748766,2.2355,165.51,165.45,2.2363]
[1717397749367,6.25098353,165.54,165.44,54.48]
[1717397749546,7.25811136,165.53,165.45,0.34]
[1717397749750,9.49331136,165.53,165.48,2.2359]
[1717397749971,2.2352,165.53,165.48,2.2359]
[1717397750261,2.2351,165.54,165.48,2.2359]
[1717397750563,7.2573346,165.53,165.48,2.2359]
[1717397751547,7.2573346,165.53,165.47,2.236]
[1717397751756,2.2351,165.54,165.47,2.236]
[1717397753290,11.22864027,165.57,165.47,2.236]
[1717397753476,2.2352,165.53,165.47,2.236]
[1717397753855,0.34,165.56,165.43,6.6468]
[1717397754081,2.2356,165.5,165.43,6.6468]
[1717397754486,2.2356,165.5,165.43,8.8833]
[1717397754985,2.2356,165.5,165.44,2.2364]
[1717397755362,2.2356,165.5,165.43,8.8833]
[1717397755556,2.2357,165.49,165.43,2.2365]
[1717397755757,2.2357,165.49,165.41,15.1035]
[1717397755758,2.2358,165.49,165.42,2.2367]
[1717397756169,2.2359,165.48,165.42,2.2367]
[1717397757591,2.236,165.47,165.42,2.2367]
[1717397758892,2.2361,165.47,165.4,2.2368]
[1717397759104,2.2361,165.47,165.41,2.2368]
[1717397760582,2.2361,165.46,165.4,2.2369]
[1717397761317,2.236,165.47,165.41,2.2368]
[1717397763220,2.2359,165.48,165.43,2.2365]
[1717397763620,2.2359,165.48,165.42,2.2367]
[1717397764079,11.1777,165.51,165.4,2.2368]
[1717397764286,7.25966178,165.5,165.4,2.2368]
[1717397764745,2.236,165.47,165.41,2.2368]
[1717397764912,2.236,165.47,165.42,2.2366]
[1717397766236,2.236,165.47,165.41,2.2368]
[1717397767106,13.5109583,165.59,165.41,7.01]
[1717397767311,13.5109583,165.59,165.41,11.4834]
[1717397767312,2.2355,165.51,165.41,11.4834]
[1717397767543,2.2357,165.5,165.4,36.61]
[1717397767719,2.2357,165.5,165.43,2.2365]
[1717397767909,2.2358,165.49,165.43,2.2365]
[1717397768112,2.2356,165.5,165.43,2.2365]
[1717397768341,2.2358,165.49,165.43,2.2365]
[1717397768518,2.2358,165.49,165.42,2.2367]
[1717397769014,2.2358,165.49,165.43,2.2365]
[1717397769334,4.4702,165.54,165.43,2.2365]
[1717397769335,2.2356,165.5,165.43,2.2365]
[1717397772815,2.2358,165.49,165.43,2.2365]
[1717397773015,4.4702,165.54,165.44,2.2363]
[1717397773016,2.2356,165.5,165.44,2.2363]
[1717397774049,2.2355,165.51,165.45,2.2363]
[1717397775328,7.25860376,165.5,165.45,2.2363]
[1717397775842,7.25860376,165.5,165.45,8.8062]
[1717397776440,2.2355,165.51,165.45,8.8062]
[1717397776818,7.25829453,165.5,165.45,8.8062]
[1717397777136,17.42080126,165.55,165.48,2.2358]
[1717397777345,7.25777715,165.54,165.47,2.236]
[1717397777640,7.25777715,165.53,165.47,2.236]
[1717397778025,2.2353,165.53,165.47,2.236]
[1717397778234,7.25777715,165.52,165.47,8.5212]
[1717397778632,9.49307715,165.52,165.47,8.5212]
[1717397778840,2.2353,165.52,165.47,8.5212]
[1717397779337,2.2352,165.53,165.47,8.5212]
[1717397779522,2.2352,165.53,165.48,22.506]
[1717397779523,7.25733882,165.52,165.48,22.506]
[1717397779923,7.25733882,165.52,165.49,22.7421]
[1717397780131,7.25733882,165.54,165.5,6.328]
[1717397780336,7.25733882,165.54,165.5,8.5636]
[1717397780541,7.25733882,165.55,165.5,8.5636]
[1717397780938,7.25733882,165.55,165.5,24.9777]
[1717397782243,9.49223882,165.55,165.5,22.7421]
[1717397782459,7.25733882,165.54,165.5,16.4141]
[1717397782644,7.25733882,165.53,165.52,2.2353]
[1717397782857,2.2345,165.58,165.53,6.5034]
[1717397783037,7.25614817,165.57,165.53,6.5034]
[1717397783932,7.25614817,165.57,165.54,6.5034]
[1717397784137,7.25614817,165.57,165.55,2.32496805]
[1717397784372,7.25614817,165.56,165.55,2.32496805]
[1717397784655,9.49074817,165.58,165.54,6.5034]
[1717397784868,7.25614817,165.56,165.54,6.5034]
[1717397785069,7.25614817,165.57,165.54,6.5034]
[1717397785236,7.25564091,165.58,165.54,21.7209]
[1717397786048,7.25564091,165.58,165.5,36.27]
[1717397786049,7.25564091,165.58,165.51,2.2355]
[1717397786237,7.25564091,165.61,165.51,2.2355]
[1717397786435,7.25564091,165.61,165.5,8.7381]
[1717397786735,2.2349,165.55,165.5,6.5025]
[1717397786946,7.25564091,165.54,165.5,6.5025]
[1717397787445,7.25564091,165.54,165.5,8.7381]
[1717397787648,7.25564091,165.55,165.42,4.4733]
[1717397787871,7.25564091,165.53,165.42,42.3621]
[1717397788075,2.2359,165.49,165.42,44.5988]
[1717397788767,2.2359,165.49,165.42,42.3621]
[1717397789763,2.2359,165.49,165.44,2.2364]
[1717397789935,2.2356,165.5,165.44,8.7129]
[1717397790143,7.25889163,165.49,165.44,8.7129]
[1717397790964,7.25889163,165.49,165.47,2.236]
[1717397791138,7.25874623,165.52,165.45,6.1212]
[1717397791760,6.25567341,165.54,165.45,6.1212]
[1717397791960,2.2355,165.52,165.45,8.3575]
[1717397793062,7.25790276,165.51,165.46,2.2361]
[1717397793245,7.25790276,165.51,165.46,23.6774]
[1717397793442,2.2355,165.52,165.46,23.6774]
[1717397793654,6.25567341,165.54,165.47,2.236]
[1717397793655,8.49087341,165.54,165.47,2.236]
[1717397793860,7.25777897,165.53,165.47,2.236]
[1717397794266,7.25777897,165.53,165.47,3.02572655]
[1717397794843,7.25777897,165.53,165.49,6.3692]
[1717397795643,7.25777897,165.53,165.45,18.21]
[1717397795644,9.49297897,165.53,165.45,6.3692]
[1717397795842,2.2352,165.53,165.45,6.3692]
[1717397796764,2.2352,165.53,165.47,2.236]
[1717397797947,2.2355,165.51,165.45,8.6054]
[1717397798150,4.47,165.55,165.45,6.3692]
[1717397798364,2.2356,165.5,165.45,6.3692]
[1717397798749,2.2355,165.51,165.45,8.6055]
[1717397798952,7.25838326,165.5,165.45,8.6055]
[1717397800994,9.49398326,165.5,165.45,6.3692]
[1717397801177,2.2354,165.52,165.46,21.811]
[1717397801349,7.25841956,165.51,165.46,24.0471]
[1717397801877,7.25841956,165.51,165.46,24.5049]
[1717397803178,9.49391956,165.51,165.47,6.4817]
[1717397803383,17.41965924,165.54,165.47,6.4817]
[1717397803546,7.25817883,165.53,165.47,6.4817]
[1717397803745,7.25817883,165.52,165.45,2.2363]
[1717397803968,7.25817883,165.54,165.45,2.2363]
[1717397804562,7.25817883,165.54,165.44,0.17]
[1717397804765,2.2352,165.53,165.47,2.236]
[1717397804968,7.25817883,165.52,165.48,6.6113]
[1717397805785,9.49357883,165.52,165.47,15.012]
[1717397806095,17.41955134,165.55,165.46,2.2361]
[1717397806386,2.2354,165.52,165.46,2.2361]
[1717397806587,7.25753977,165.51,165.46,8.5629]
[1717397807586,2.2352,165.53,165.47,2.236]
[1717397807894,7.25786693,165.52,165.48,8.7485]
[1717397808071,7.25786693,165.53,165.49,6.5126]
[1717397808266,7.25754215,165.52,165.49,6.5126]
[1717397808576,2.2351,165.54,165.49,6.5126]
[1717397808775,7.25748921,165.53,165.49,6.5126]
[1717397808982,9.49268921,165.53,165.49,6.5126]
[1717397809283,9.49278921,165.52,165.45,36.27]
[1717397809486,2.2353,165.52,165.46,2.236]
[1717397809668,2.2353,165.52,165.47,24.9164]
[1717397809869,2.2353,165.52,165.48,6.3178]
[1717397810091,23.67203062,165.56,165.48,6.3178]
[1717397810092,2.2352,165.53,165.48,6.3178]
[1717397810280,7.25750406,165.52,165.49,6.3425]
[1717397810869,7.25750406,165.52,165.49,8.5782]
[1717397811070,17.41790417,165.55,165.49,8.5782]
[1717397811371,7.25744271,165.54,165.49,8.5782]
[1717397811564,6.25412645,165.56,165.49,8.5782]
[1717397811565,24.67521997,165.55,165.49,8.5782]
[1717397811772,7.25744271,165.54,165.49,8.5782]
[1717397814193,7.25744271,165.54,165.49,18.5133]
[1717397814588,7.25744271,165.54,165.51,18.5129]
[1717397814793,7.25744271,165.54,165.52,6.4849]
[1717397814997,7.25744271,165.53,165.52,6.4849]
[1717397815210,7.25744271,165.56,165.52,6.4849]
[1717397815489,24.67411489,165.56,165.52,6.4849]
[1717397815698,7.25744271,165.55,165.52,6.4849]
[1717397815882,7.25744271,165.54,165.52,6.4849]
[1717397816088,7.25744271,165.53,165.52,6.4849]
[1717397816484,7.25744271,165.56,165.52,6.4849]
[1717397816808,2.2347,165.57,165.52,6.4849]
[1717397816809,7.25744271,165.55,165.52,6.4849]
[1717397816978,7.25744271,165.56,165.52,6.4849]
[1717397820317,7.25744271,165.56,165.49,16.5262]
[1717397820607,2.2351,165.54,165.49,22.8686]
[1717397820781,7.25744271,165.53,165.49,22.8686]
[1717397821700,7.25744271,165.53,165.49,16.5262]
[1717397822000,7.25744271,165.53,165.49,22.6604]
[1717397822578,7.25744271,165.54,165.49,22.6604]
[1717397822780,9.49254271,165.54,165.49,22.6604]
[1717397823008,7.25744271,165.53,165.49,6.1342]
[1717397823307,2.2354,165.52,165.45,21.9592]
[1717397823486,2.2352,165.53,165.45,24.1954]
[1717397823686,7.25717396,165.52,165.45,24.1954]
[1717397823911,7.25717396,165.52,165.45,21.9592]
[1717397824104,2.2352,165.54,165.47,2.2359]
[1717397824411,9.49232906,165.53,165.46,2.2361]
[1717397824616,7.25712906,165.52,165.46,2.2361]
[1717397825093,7.25712906,165.52,165.49,6.2233]
[1717397825297,17.41704617,165.57,165.49,15.5834]
[1717397825509,24.6740235,165.56,165.49,15.5834]
[1717397825687,9.49191772,165.56,165.49,15.5834]
[1717397825890,7.25711772,165.55,165.49,15.5834]
[1717397826204,7.25711772,165.55,165.49,17.8191]
[1717397826394,24.6740235,165.55,165.49,17.8191]
[1717397826584,2.2348,165.56,165.5,22.0188]
[1717397826585,7.25711772,165.54,165.5,22.0188]
[1717397826786,4.73798788,165.59,165.49,2.2357]
[1717397826787,7.25711772,165.55,165.51,6.1366]
[1717397826986,7.25711772,165.54,165.51,22.0188]
[1717397827221,7.25711772,165.56,165.51,15.8822]
[1717397827385,7.25711772,165.56,165.52,6.1366]
[1717397828297,7.25711772,165.56,165.53,22.5521]
[1717397828494,7.25711772,165.55,165.53,22.5521]
[1717397828816,19.6513954,165.58,165.54,6.3288]
[1717397829007,7.25590567,165.57,165.54,6.3288]
[1717397829201,6.97238788,165.59,165.54,6.3288]
[1717397829202,24.67000906,165.58,165.54,6.3288]
[1717397829402,7.25590567,165.57,165.54,6.3288]
[1717397831383,9.49060567,165.57,165.54,6.3288]
[1717397831585,7.25590567,165.56,165.5,8.4696]
[1717397836020,7.25590567,165.55,165.51,6.172]
[1717397836224,17.41424445,165.58,165.53,6.172]
[1717397836526,7.25592096,165.57,165.53,6.172]
[1717397836717,7.25592096,165.59,165.53,6.172]
[1717397836919,24.67005973,165.59,165.53,6.172]
[1717397837216,24.67005973,165.58,165.53,6.172]
[1717397837423,7.25592096,165.57,165.53,6.172]
[1717397837605,7.25592096,165.58,165.53,6.172]
[1717397837804,7.25592096,165.58,165.54,21.6897]
[1717397838403,7.25592096,165.57,165.54,21.6897]
[1717397838607,7.25592096,165.59,165.54,21.6897]
[1717397838919,7.25592096,165.58,165.54,21.6897]
[1717397839100,7.25592096,165.59,165.54,21.6897]
[1717397839300,7.25592096,165.58,165.54,21.6897]
[1717397839521,7.25592096,165.57,165.54,21.6897]
[1717397839721,7.25592096,165.59,165.54,21.6897]
[1717397839924,2.2343,165.6,165.54,21.6897]
[1717397839925,7.25592096,165.58,165.54,21.6897]
[1717397840230,7.25592096,165.57,165.54,6.0636]
[1717397840430,2.2343,165.6,165.54,6.0636]
[1717397840640,7.25485585,165.59,165.54,6.0636]
[1717397841123,7.25485585,165.59,165.54,23.9265]
[1717397841441,7.25485585,165.58,165.54,21.6914]
[1717397841606,7.25485585,165.6,165.54,23.9264]
[1717397841811,7.25475628,165.59,165.54,17.8628]
[1717397842023,7.25475628,165.58,165.55,6.3801]
[1717397842224,7.25475628,165.6,165.55,6.3801]
[1717397842418,7.25473827,165.59,165.55,6.3801]
[1717397842617,7.25473827,165.58,165.55,6.3801]
[1717397842826,2.2342,165.61,165.55,6.3801]
[1717397843136,7.25457924,165.6,165.55,6.3801]
[1717397845206,2.2342,165.61,165.55,6.3801]
[1717397845524,7.25475327,165.6,165.55,6.3801]
[1717397845909,7.25475327,165.6,165.57,23.1924]
[1717397846209,11.86115721,165.63,165.57,23.1924]
[1717397846407,9.48831479,165.62,165.57,23.1924]
[1717397846607,7.25431479,165.61,165.57,23.1924]
[1717397847136,7.12316933,165.63,165.57,23.1924]
[1717397847431,9.4876374,165.62,165.57,23.1924]
[1717397847614,7.2536374,165.61,165.57,23.1924]
[1717397849711,7.2536374,165.61,165.58,21.9382]
[1717397849933,4.73798788,165.67,165.58,22.1082]
[1717397850144,7.25375365,165.66,165.58,22.1082]
[1717397850863,2.2338,165.64,165.58,22.1082]
[1717397851023,7.25375365,165.63,165.58,16.0144]
[1717397851228,7.25375365,165.63,165.59,6.1461]
[1717397851631,7.25375365,165.63,165.6,6.6118]
[1717397851933,4.73798788,165.67,165.57,40.7392]
[1717397851934,17.40961074,165.65,165.62,15.6878]
[1717397852150,7.25317952,165.64,165.63,6.3396]
[1717397852351,2.2332,165.68,165.63,6.3396]
[1717397852557,7.2522242,165.67,165.63,6.3396]
[1717397853358,7.2522242,165.67,165.58,2.4044]
[1717397853359,9.4858242,165.66,165.59,42.8152]
[1717397853564,7.2522242,165.65,165.59,42.8152]
[1717397853851,2.2334,165.66,165.59,42.8152]
[1717397854077,9.48612076,165.65,165.59,6.5452]
[1717397854230,2.2336,165.65,165.59,6.5452]
[1717397854549,17.40754892,165.7,165.59,6.5452]
[1717397854748,7.2528356,165.69,165.59,6.5452]
[1717397854946,0.34,165.71,165.59,6.5452]
[1717397854947,7.2528356,165.68,165.59,6.5452]
[1717397855152,24.66038452,165.7,165.6,0.17]
[1717397855366,2.2333,165.67,165.6,0.17]
[1717397855534,7.2528356,165.66,165.6,0.17]
[1717397857761,7.2528356,165.66,165.6,0.34]
[1717397858061,2.2333,165.67,165.6,0.34]
[1717397858458,7.25225306,165.66,165.6,0.34]
[1717397859238,2.2333,165.67,165.6,0.34]
[1717397859644,2.2335,165.66,165.6,0.34]
[1717397860059,2.2335,165.66,165.6,0.17]
[1717397861273,2.2336,165.65,165.6,0.17]
[1717397861767,2.2336,165.65,165.61,6.0033]
[1717397862769,2.2336,165.65,165.61,21.317]
[1717397863064,2.2335,165.66,165.61,21.317]
[1717397863957,4.4657,165.71,165.61,21.317]
[1717397863958,2.2337,165.65,165.61,15.3137]
[1717397864163,4.4661,165.7,165.61,15.3137]
[1717397864164,2.2334,165.67,165.61,15.3137]
[1717397865958,2.2334,165.66,165.61,15.3137]
[1717397866256,2.2334,165.66,165.61,21.4969]
[1717397866671,4.95043715,165.69,165.61,6.1832]
[1717397866874,2.2336,165.66,165.61,6.1832]
[1717397870771,2.2336,165.65,165.61,6.1832]
[1717397871078,2.2338,165.64,165.57,21.7698]
[1717397871594,2.2338,165.64,165.57,24.0044]
[1717397873190,7.25357488,165.63,165.57,24.0044]
[1717397873484,2.2338,165.64,165.57,24.0044]
[1717397874275,7.25343014,165.63,165.57,24.0044]
[1717397875891,2.2338,165.64,165.57,24.0044]
[1717397876188,7.25330549,165.63,165.57,24.0044]
[1717397881196,7.25330549,165.63,165.58,2.2345]
[1717397881494,2.2336,165.65,165.61,6.6148]
[1717397881697,7.25304843,165.64,165.61,6.6148]
[1717397883195,9.48674843,165.64,165.61,6.6148]
[1717397883397,7.25304843,165.63,165.61,6.6148]
[1717397884277,7.25304843,165.63,165.6,15.945]
[1717397884582,7.25304843,165.63,165.6,6.3509]
[1717397890389,7.25304843,165.63,165.56,15.7856]
[1717397890594,7.25304843,165.62,165.56,15.7856]
[1717397890779,9.48724843,165.61,165.56,15.7856]
[1717397890974,7.25304843,165.6,165.56,22.3217]
[1717397896234,7.25304843,165.6,165.56,6.5361]
[1717397896734,9.48754843,165.59,165.56,6.5361]
[1717397896909,7.25304843,165.58,165.56,6.5361]
[1717397897628,2.2343,165.6,165.56,6.5361]
[1717397897925,7.25466348,165.59,165.56,6.5361]
[1717397898142,7.25466348,165.59,165.57,6.4744]
[1717397898510,7.25466348,165.59,165.56,15.6435]
[1717397898837,7.25466348,165.59,165.56,21.9353]
[1717397899827,7.25466348,165.59,165.51,36.24]
[1717397899828,9.48906348,165.59,165.52,8.6493]
[1717397900041,7.25466348,165.58,165.52,8.6493]
[1717397900931,7.25466348,165.58,165.51,51.8281]
[1717397900932,7.25466348,165.58,165.55,16.6122]
[1717397901109,7.25466348,165.59,165.56,6.4029]
[1717397901314,7.25466348,165.58,165.56,6.4029]
[1717397901507,2.2343,165.6,165.56,6.4029]
[1717397901734,7.25490619,165.59,165.56,6.4029]
[1717397905538,9.48940619,165.59,165.56,6.4029]
[1717397905750,7.25490619,165.58,165.56,6.4029]
[1717397906113,7.25490619,165.58,165.51,21.3]
[1717397906114,9.48950619,165.58,165.51,21.3]
[1717397906319,2.2346,165.58,165.51,23.5354]
[1717397906520,2.2346,165.58,165.51,21.3]
[1717397907813,2.2346,165.58,165.52,2.2353]
[1717397909444,17.41170856,165.62,165.53,2.2352]
[1717397909645,7.25490161,165.61,165.53,2.2352]